bitfinex-derivatives/quotes_ETHF0:USTF0_20250730
["timestamp","ask_amount","ask_price","bid_price","bid_amount"]
[1753902382929,3.2078,3689.4,3688.5,3.2078]
[1753902383131,3.2078,3689.4,3687.5,39.105]
[1753902383132,0.38,3689.7,3688.3,29.988]
[1753902383334,3.2078,3688.8,3687.9,36.645]
[1753902383540,3.2078,3688.8,3687.5,39.105]
[1753902383541,0.38,3689.7,3689.2,0.5422]
[1753902383733,3.74969,3691.4,3689.7,0.54212]
[1753902383934,3.74969,3691.4,3690.3,3.2078]
[1753902383935,3.2078,3691.4,3690.3,3.2078]
[1753902384232,3.2078,3690.4,3689.3,3.2078]
[1753902384433,3.2078,3690.3,3689.3,3.2078]
[1753902384631,3.2078,3689.3,3686.4,3.75041]
[1753902384830,3.2078,3688.7,3686.9,3.75034]
[1753902385039,3.2078,3689.1,3687.0,3.2078]
[1753902385239,3.2078,3688.7,3686.9,3.2078]
[1753902385430,3.2078,3688.3,3686.5,3.2078]
[1753902385633,3.2078,3688.4,3687.2,3.2078]
[1753902385838,3.2078,3688.4,3687.5,3.2078]
[1753902386038,3.2078,3687.6,3686.6,3.2078]
[1753902386342,0.54249,3687.2,3686.9,3.2078]
[1753902386542,3.2078,3687.7,3686.5,3.2078]
[1753902386740,3.2078,3686.9,3685.5,3.2078]
[1753902386942,3.2078,3687.8,3686.7,3.2078]
[1753902387136,3.2078,3687.6,3686.8,3.2078]
[1753902387331,3.2078,3688.2,3687.2,3.2078]
[1753902387538,3.2078,3690.2,3688.1,3.2078]
[1753902387836,3.2078,3690.0,3688.9,3.2078]
[1753902388036,3.2078,3690.0,3687.9,39.08]
[1753902388037,0.54201,3690.5,3689.7,3.2078]
[1753902388240,3.2078,3691.4,3689.8,75.717]
[1753902388431,0.54196,3690.9,3690.3,3.2078]
[1753902388636,0.54194,3691.0,3690.2,3.2078]
[1753902388833,3.2078,3691.7,3690.2,3.2078]
[1753902389036,3.2078,3692.1,3690.9,3.2078]
[1753902389341,0.54174,3692.4,3692.0,3.2078]
[1753902389538,0.38,3692.7,3691.8,75.701]
[1753902389740,0.54167,3692.9,3692.6,3.2078]
[1753902389940,1.35374,3694.1,3692.6,3.2078]
[1753902390140,0.5415,3694.0,3693.8,3.2078]
[1753902390332,3.2078,3695.2,3693.4,3.2078]
[1753902390532,0.54159,3693.4,3692.6,3.2078]
[1753902390737,0.54163,3693.1,3692.7,36.623]
[1753902390937,3.2078,3693.2,3691.8,39.064]
[1753902391137,0.54181,3691.9,3691.4,3.2078]
[1753902391348,0.54181,3691.9,3691.5,39.064]
[1753902391539,0.54181,3691.9,3689.6,0.54213]
[1753902391540,0.54209,3690.0,3689.5,3.2078]
[1753902391838,0.54225,3688.9,3687.7,3.2078]
[1753902392045,1.35445,3692.2,3687.2,39.064]
[1753902392046,3.2078,3691.1,3688.9,0.54225]
[1753902392338,3.2078,3691.0,3689.9,3.2078]
[1753902392534,3.2078,3691.6,3689.9,36.623]
[1753902392733,0.54179,3692.0,3691.5,3.2078]
[1753902392938,3.2078,3692.1,3691.1,3.2078]
[1753902393131,3.2078,3692.4,3691.1,3.2078]
[1753902393344,0.38,3692.7,3691.5,3.2078]
[1753902393644,3.2078,3693.8,3692.6,3.2078]
[1753902393837,5.59848562,3697.1,3693.8,0.54152]
[1753902393838,3.2078,3695.3,3693.8,0.54152]
[1753902394136,1.35313,3695.6,3694.6,3.2078]
[1753902394341,3.2078,3695.0,3693.7,39.047]
[1753902394541,1.35329,3695.2,3693.7,39.047]
[1753902394738,3.2078,3695.0,3693.9,3.2078]
[1753902394940,2.70525,3697.0,3693.7,39.047]
[1753902394941,3.2078,3695.4,3694.3,3.05545793]
[1753902395145,0.54129,3695.3,3694.3,3.05545793]
[1753902395343,3.2078,3696.1,3695.2,3.2078]
[1753902395532,3.2078,3696.1,3694.9,39.7948]
[1753902395738,3.2078,3696.1,3695.4,3.2078]
[1753902396134,3.74892,3696.6,3695.7,3.2078]
[1753902396338,3.74892,3696.6,3695.7,3.00476446]
[1753902396339,6.89044384,3696.1,3695.7,3.00476446]
[1753902396537,6.89044384,3696.1,3695.4,3.2078]
[1753902396738,3.2078,3696.0,3694.9,30.318]
[1753902396940,3.2078,3695.6,3694.9,30.318]
[1753902397238,6.89044384,3696.1,3693.8,3.2078]
[1753902397239,3.2078,3695.2,3693.8,36.99308038]
[1753902397446,0.54151,3693.9,3693.8,3.8e-07]
[1753902397744,0.54172,3692.5,3692.1,36.587]
[1753902398139,0.54175,3692.3,3692.1,36.587]
[1753902398444,0.54173,3692.4,3692.1,36.587]
[1753902398648,0.54176,3692.2,3692.1,36.587]
[1753902398941,0.54176,3692.2,3692.1,35.15444]
[1753902399146,0.54181,3691.9,3690.9,36.573]
[1753902399346,0.5418,3692.0,3691.0,0.54193]
[1753902399645,0.54173,3692.4,3691.4,0.54187]
[1753902399847,3.2078,3692.7,3690.9,36.573]
[1753902400038,1.35425,3692.6,3690.9,36.573]
[1753902400243,3.2078,3692.2,3690.9,36.573]
[1753902400443,3.2078,3691.8,3690.9,36.573]
[1753902400940,0.5419,3691.2,3690.9,36.573]
[1753902401545,0.54189,3691.3,3690.9,36.573]
[1753902401751,3.2078,3691.4,3690.9,36.573]
[1753902401945,3.74967,3691.4,3690.9,36.573]
[1753902402250,3.2078,3691.4,3690.9,36.573]
[1753902402447,3.2078,3692.2,3691.6,0.54183]
[1753902402651,0.54177,3692.1,3691.1,3.74971]
[1753902402947,0.54177,3692.1,3691.2,0.54188]
[1753902403144,3.74956,3692.2,3691.4,3.2078]
[1753902403343,3.2078,3692.2,3691.4,0.54186]
[1753902403548,1.35361,3694.4,3692.0,3.2078]
[1753902403743,0.5416,3693.3,3692.3,0.54173]
[1753902403948,0.5416,3693.3,3692.1,36.574]
[1753902404149,3.2078,3692.4,3692.1,36.574]
[1753902404347,0.54172,3692.5,3692.1,36.574]
[1753902404551,0.54175,3692.2,3692.1,36.574]
[1753902404753,3.2078,3692.3,3691.1,36.574]
[1753902405051,0.54186,3691.5,3691.1,36.574]
[1753902405252,0.54195,3690.9,3690.8,0.40641045]
[1753902405750,1.35538,3689.6,3687.2,3.2078]
[1753902405950,3.2078,3688.0,3687.9,30.452]
[1753902406149,3.2078,3688.0,3687.9,30.4901518]
[1753902406348,3.2078,3688.0,3687.9,35.4901518]
[1753902406542,3.2078,3688.1,3687.9,5.0381518]
[1753902406753,3.75016,3688.1,3687.9,36.6121518]
[1753902406951,3.49051347,3689.9,3687.9,41.6121518]
[1753902407142,0.5422,3689.2,3688.5,0.54229]
[1753902407346,0.54231,3688.5,3687.3,3.2078]
[1753902407548,3.2078,3688.3,3688.0,0.54237]
[1753902407851,3.2078,3688.3,3687.9,36.584]
[1753902407852,0.54234,3688.2,3687.9,36.584]
[1753902408149,2.70851,3692.6,3689.2,0.5422]
[1753902408347,3.2078,3690.5,3689.3,3.2078]
[1753902408652,3.2078,3690.5,3690.0,0.54207]
[1753902408849,3.2078,3690.5,3690.1,36.584]
[1753902409049,0.54202,3690.4,3690.1,36.584]
[1753902409250,3.2078,3690.5,3690.1,36.584]
[1753902409445,3.2078,3691.9,3691.7,0.54181]
[1753902409648,3.2078,3691.8,3691.7,35.75660922]
[1753902409850,3.2078,3692.4,3691.7,35.75660922]
[1753902410054,3.2078,3692.4,3691.8,0.54181]
[1753902410355,5.87275122,3693.1,3692.4,0.54172]
[1753902410356,9.08055122,3693.1,3692.4,0.54172]
[1753902410648,0.54168,3692.8,3692.6,3.2078]
[1753902410849,5.87275122,3693.1,3692.8,0.54166]
[1753902411157,3.2078,3693.8,3692.8,3.2078]
[1753902411351,5.87275122,3694.3,3693.5,0.54155]
[1753902411553,0.54155,3693.6,3692.9,3.2078]
[1753902411747,5.87275122,3694.3,3692.9,41.14793]
[1753902411954,5.87275122,3694.3,3694.0,0.54149]
[1753902412150,5.87275122,3694.3,3694.0,36.92434774]
[1753902412349,6.89044384,3695.1,3695.0,0.54134]
[1753902412550,6.00646384,3695.1,3695.0,0.38899387]
[1753902412858,0.38,3695.7,3695.0,8.2078]
[1753902413057,0.38,3695.7,3695.1,36.586]
[1753902413256,0.38,3695.7,3695.4,0.54127]
[1753902413551,0.38,3695.7,3695.4,3.74907]
[1753902413861,0.38,3695.7,3695.6,0.54126]
[1753902414052,0.38,3695.7,3695.6,39.7858]
[1753902414560,0.38,3695.7,3695.5,36.578]
[1753902414849,5.38,3695.7,3694.9,35.635]
[1753902415156,0.54132,3695.2,3694.6,3.2078]
[1753902415356,3.74919,3694.7,3693.6,0.54155]
[1753902415557,3.74919,3694.7,3692.2,1.35438]
[1753902415558,3.2078,3694.1,3692.3,3.2078]
[1753902415852,3.2078,3693.3,3692.5,3.2078]
[1753902416156,3.51363255,3694.0,3690.8,0.40641045]
[1753902416157,3.2078,3692.7,3691.2,36.569]
[1753902416352,3.2078,3692.9,3691.3,3.2078]
[1753902416549,0.54188,3691.4,3690.9,3.2078]
[1753902416847,3.2078,3691.6,3690.8,0.40641045]
[1753902417049,0.54192,3691.1,3690.8,0.40641045]
[1753902417249,3.2078,3691.1,3689.7,0.54212]
[1753902417552,0.54202,3690.4,3689.3,0.54218]
[1753902417761,3.2078,3690.7,3689.4,36.569]
[1753902417959,3.2078,3690.3,3689.0,3.2078]
[1753902418552,3.2078,3689.9,3689.0,3.2078]
[1753902418860,3.2078,3689.9,3688.6,3.2078]
[1753902419058,3.2078,3689.5,3688.6,3.2078]
[1753902419257,0.54227,3688.8,3688.6,3.2078]
[1753902419460,0.5423,3688.5,3688.4,36.569]
[1753902419757,1.35542,3689.4,3687.4,3.2078]
[1753902420060,0.54233,3688.3,3688.1,36.579]
[1753902420257,3.2078,3689.1,3688.2,3.2078]
[1753902420456,3.2078,3691.5,3690.0,0.54206]
[1753902420656,3.2078,3692.4,3691.4,3.2078]
[1753902420857,0.542,3690.6,3690.3,36.579]
[1753902421054,3.2078,3691.5,3690.5,3.2078]
[1753902421252,3.2078,3691.5,3690.0,39.018]
[1753902421253,3.2078,3691.5,3690.0,42.2258]
[1753902421456,0.38,3692.7,3692.1,0.54177]
[1753902421657,0.38,3692.7,3692.2,36.579]
[1753902421852,0.38,3692.7,3692.3,36.579]
[1753902422063,0.38,3692.7,3691.5,3.2078]
[1753902422264,0.02783033,3692.7,3692.2,3.2078]
[1753902422462,0.02783033,3692.7,3692.6,3.2078]
[1753902422661,0.02783033,3692.7,3692.6,39.7868]
[1753902422861,0.5417,3692.6,3691.1,3.2078]
[1753902423061,3.2078,3692.2,3691.8,0.54181]
[1753902423257,0.02783033,3692.7,3692.6,0.5417]
[1753902423459,0.02783033,3692.7,3692.5,0.54171]
[1753902423661,0.02783033,3692.7,3692.5,3.74951]
[1753902423861,3.2078,3692.6,3692.4,0.54172]
[1753902424067,3.2078,3692.6,3692.1,36.581]
[1753902424265,2.49175,3692.2,3692.1,37.12277]
[1753902424463,0.02783033,3692.7,3692.1,36.581]
[1753902424667,0.02783033,3692.7,3691.2,1.35475]
[1753902424668,3.2078,3692.3,3691.2,4.56255]
[1753902424871,3.2078,3691.3,3690.7,1.35494]
[1753902425165,3.2078,3690.8,3690.5,0.542]
[1753902425360,3.2078,3691.0,3689.4,3.2078]
[1753902425665,3.2078,3691.0,3689.3,36.581]
[1753902425856,1.35447,3692.1,3689.2,1.35547]
[1753902425857,3.2078,3689.4,3689.2,0.54219]
[1753902426165,3.2078,3689.7,3689.5,0.54214]
[1753902426360,3.2078,3690.5,3689.3,3.2078]
[1753902426669,3.2078,3691.1,3690.1,3.2078]
[1753902426967,3.2078,3691.1,3691.0,0.54193]
[1753902427166,3.2078,3691.4,3690.0,36.575]
[1753902427358,2.54193,3691.7,3691.0,1.35481]
[1753902427556,3.2078,3693.6,3692.6,0.5417]
[1753902427760,0.5417,3692.6,3691.5,3.2078]
[1753902427962,3.2078,3691.7,3690.8,3.2078]
[1753902428269,3.2078,3693.0,3691.3,3.2078]
[1753902428459,3.2078,3692.6,3691.5,0.54185]
[1753902428660,0.54184,3691.7,3690.8,36.578]
[1753902428865,0.54195,3690.9,3690.1,0.54205]
[1753902429064,3.59244763,3691.6,3689.8,1.35526]
[1753902429264,3.2078,3690.8,3689.7,0.54211]
[1753902429667,0.54219,3689.3,3689.0,39.017]
[1753902429864,3.2078,3689.7,3688.2,3.2078]
[1753902430167,3.2078,3689.3,3688.3,1.35583]
[1753902430366,3.2078,3689.3,3688.2,3.2078]
[1753902430571,3.2078,3689.8,3689.7,0.54213]
[1753902430868,3.58370316,3690.0,3689.7,0.54212]
[1753902431063,3.03898316,3690.0,3689.9,0.5421]
[1753902431271,3.58370316,3690.4,3689.5,3.2078]
[1753902431569,3.2078,3691.9,3690.3,3.2078]
[1753902431760,3.2078,3691.8,3689.9,1.35525]
[1753902431961,3.2078,3691.4,3690.0,1.35521]
[1753902432162,0.54196,3690.9,3689.6,39.024]
[1753902432370,3.2078,3691.4,3689.6,39.024]
[1753902432664,3.2078,3691.4,3690.9,0.54194]
[1753902432665,3.52872971,3691.3,3690.9,0.54194]
[1753902432863,3.52872971,3691.3,3689.9,1.35524]
[1753902433062,3.2078,3692.2,3691.8,0.54181]
[1753902433264,3.2078,3691.9,3690.9,0.54195]
[1753902433469,3.2078,3691.5,3690.3,36.585]
[1753902433765,0.54188,3691.4,3690.8,0.54196]
[1753902433967,3.2078,3691.5,3691.2,0.5419]
[1753902434165,3.2078,3691.4,3690.4,0.54202]
[1753902434369,0.54199,3690.7,3690.1,36.585]
[1753902434572,3.4629546,3691.3,3690.4,3.2078]
[1753902434871,3.2078,3691.4,3690.3,3.2078]
[1753902435270,3.2078,3692.0,3691.7,0.54183]
[1753902435472,3.2078,3692.0,3691.5,0.54185]
[1753902435770,3.59831137,3691.9,3691.3,3.2078]
[1753902435970,3.2078,3692.0,3691.7,0.54182]
[1753902436165,3.2078,3692.3,3691.3,3.2078]
[1753902436372,3.2078,3691.9,3690.6,1.35498]
[1753902436577,0.54186,3691.6,3691.2,0.5419]
[1753902436775,3.2078,3691.5,3690.5,0.542]
[1753902436976,7.20538812,3691.5,3691.0,0.54193]
[1753902437175,3.00456553,3691.5,3691.2,0.5419]
[1753902437377,5.85424345,3692.5,3691.8,0.54181]
[1753902437576,5.85424345,3692.5,3690.7,3.2078]
[1753902437778,3.45571812,3692.4,3692.2,0.54175]
[1753902437977,0.54175,3692.3,3691.8,0.54181]
[1753902438278,5.87690159,3692.2,3690.9,0.54195]
[1753902438480,9.44370516,3692.2,3690.8,1.35491]
[1753902438681,0.54187,3691.5,3691.0,0.54193]
[1753902438984,3.2078,3691.7,3690.4,3.74982]
[1753902439181,3.2078,3691.7,3690.4,3.2078]
[1753902439382,3.44791175,3691.6,3690.4,3.2078]
[1753902439584,5.87690159,3691.9,3691.4,0.54187]
[1753902439882,5.87690159,3691.9,3690.7,3.2078]
[1753902440088,5.87690159,3691.9,3691.2,0.5419]
[1753902440089,0.54182,3691.8,3691.2,0.5419]
[1753902440281,3.2078,3691.3,3690.1,3.74986]
[1753902440482,3.2078,3690.9,3689.8,0.5421]
[1753902440679,0.54212,3689.8,3689.6,42.2318]
[1753902440883,0.54235,3688.2,3688.0,3.2078]
[1753902441084,3.2078,3689.2,3688.0,3.2078]
[1753902441285,0.51216332,3687.9,3687.6,3.2078]
[1753902441586,3.2078,3688.4,3687.2,3.2078]
[1753902441587,0.54238,3688.0,3687.2,3.2078]
[1753902441791,3.2078,3688.8,3687.6,3.2078]
[1753902441988,0.54232,3688.4,3687.7,0.54241]
[1753902442188,3.2078,3688.9,3687.7,3.2078]
[1753902442687,3.2078,3688.9,3688.2,0.54234]
[1753902442891,4.56315,3689.7,3688.3,0.54232]
[1753902443090,0.32477712,3689.0,3688.3,0.54232]
[1753902443390,0.54217,3689.4,3688.8,0.54225]
[1753902443591,0.54211,3689.8,3689.3,0.54217]
[1753902443887,3.2078,3691.5,3690.0,1.35519]
[1753902444089,0.5419,3691.3,3690.1,39.8038]
[1753902444285,3.2078,3692.4,3691.0,3.2078]
[1753902444485,3.2078,3692.4,3690.7,3.2078]
[1753902444686,3.2078,3691.6,3690.9,0.54194]
[1753902444992,3.2078,3692.3,3691.0,0.54192]
[1753902445181,0.54191,3691.2,3690.5,0.54199]
[1753902445380,3.2078,3692.0,3690.6,3.74979]
[1753902445689,3.5179468,3691.9,3691.0,0.54192]
[1753902445891,4.0597568,3691.9,3691.2,0.54189]
[1753902446093,3.2078,3692.6,3692.2,0.54175]
[1753902446291,0.02783033,3692.7,3692.1,0.54177]
[1753902446588,0.02783033,3692.7,3691.2,31.406]
[1753902446589,1.35426,3692.6,3691.2,31.406]
[1753902446788,0.54184,3691.7,3690.6,36.594]
[1753902446983,0.54179,3692.0,3691.3,3.2078]
[1753902447189,0.54195,3691.0,3690.3,3.74983]
[1753902447386,3.55046417,3691.9,3691.4,0.54187]
[1753902447590,3.2078,3693.4,3692.5,0.54171]
[1753902447883,0.5416,3693.3,3692.6,3.2078]
[1753902448090,0.5416,3693.3,3692.5,0.54171]
[1753902448091,1.35391,3693.6,3692.0,3.2078]
[1753902448285,3.2078,3693.1,3692.1,36.594]
[1753902448487,4.56191,3693.1,3691.7,3.2078]
[1753902448693,0.54178,3692.1,3691.2,3.2078]
[1753902448896,0.54174,3692.4,3691.8,0.54182]
[1753902449090,3.2078,3692.6,3691.3,3.2078]
[1753902449397,40.8,3694.5,3692.2,3.2078]
[1753902449398,0.54167,3692.9,3692.2,3.2078]
[1753902449594,3.2078,3693.2,3691.9,3.2078]
[1753902449797,3.2078,3693.8,3692.4,3.2078]
[1753902449995,3.2078,3694.2,3692.5,0.5417]
[1753902450294,3.2078,3694.2,3692.4,37.9413]
[1753902450494,3.74927,3694.2,3693.5,0.54155]
[1753902450701,3.2078,3694.2,3693.3,0.54159]
[1753902450892,4.56147,3694.2,3692.9,0.54164]
[1753902451198,3.2078,3693.9,3692.4,3.2078]
[1753902451394,0.5416,3693.4,3692.6,3.2078]
[1753902451598,3.2078,3693.9,3692.9,3.2078]
[1753902451804,3.2078,3693.9,3692.5,3.2078]
[1753902452100,3.2078,3693.9,3692.7,0.54168]
[1753902452300,0.54157,3693.6,3692.7,3.2078]
[1753902452496,0.54152,3693.9,3693.5,3.2078]
[1753902452694,1.35357,3694.5,3693.0,3.2078]
[1753902452898,0.54156,3693.6,3693.0,0.54163]
[1753902453089,0.54156,3693.6,3691.8,1.35454]
[1753902453090,0.5415,3694.0,3693.5,0.54157]
[1753902453297,0.54156,3693.6,3693.4,3.2078]
[1753902453499,3.2078,3694.6,3693.5,0.54157]
[1753902453700,3.2078,3695.0,3693.9,3.2078]
[1753902453999,0.54139,3694.8,3694.5,3.2078]
[1753902454201,3.2078,3695.0,3694.4,36.581]
[1753902454393,1.35329,3695.3,3693.1,39.02]
[1753902454394,0.54143,3694.5,3694.2,3.2078]
[1753902454594,0.54138,3694.8,3694.4,3.2078]
[1753902454791,3.2078,3695.4,3694.4,3.2078]
[1753902454993,0.38,3695.7,3694.6,3.2078]
[1753902455301,0.54148,3694.1,3694.0,3.2078]
[1753902455498,0.54154,3693.7,3693.4,3.2078]
[1753902455695,0.54161,3693.2,3693.1,39.02]
[1753902456002,0.54161,3693.3,3693.1,39.02]
[1753902456298,1.3535,3694.7,3693.1,39.02]
[1753902456596,3.2078,3695.6,3694.5,3.2078]
[1753902456802,0.54138,3694.8,3694.5,3.2078]
[1753902456997,1.35317,3695.6,3694.5,3.2078]
[1753902457298,4.94095,3695.7,3694.5,3.2078]
[1753902457502,0.54126,3695.6,3694.9,3.74915]
[1753902457805,0.38,3695.7,3695.4,0.54128]
[1753902458005,3.2078,3697.0,3695.4,5.0]
[1753902458198,3.2078,3697.0,3696.2,3.2078]
[1753902458498,5.87690159,3697.4,3696.7,3.2078]
[1753902458698,0.5411,3696.7,3695.2,39.003]
[1753902458997,5.87690159,3697.0,3696.2,3.2078]
[1753902459200,0.54114,3696.5,3696.2,3.2078]
[1753902459397,5.87690159,3697.0,3696.2,3.2078]
[1753902459599,0.54115,3696.4,3696.2,3.2078]
[1753902459796,5.87690159,3697.0,3695.7,3.2078]
[1753902459996,3.2078,3696.9,3696.2,3.2078]
[1753902460193,5.87690159,3696.6,3694.8,1.35342]
[1753902460493,0.54135,3695.0,3693.7,3.2078]
[1753902460698,3.2078,3695.3,3693.7,39.7728]
[1753902460897,1.35322,3695.5,3693.7,39.7728]
[1753902460898,3.2078,3694.4,3693.8,3.8e-07]
[1753902461201,3.2078,3694.4,3691.0,1.35484]
[1753902461202,3.2078,3693.9,3692.9,3.2078]
[1753902461400,0.54155,3693.7,3693.0,3.2078]
[1753902461596,3.2078,3694.6,3693.6,3.2078]
[1753902461795,0.54152,3693.9,3693.6,3.2078]
[1753902462002,3.2078,3694.6,3693.6,39.7638]
[1753902462197,0.54146,3694.3,3694.2,3.2078]
[1753902462394,1.35327,3695.3,3694.2,3.2078]
[1753902462599,0.38,3695.7,3695.2,3.2078]
[1753902462792,0.38,3695.7,3694.6,3.2078]
[1753902462793,0.54139,3694.7,3694.6,3.2078]
[1753902463001,0.38,3695.7,3694.9,3.2078]
[1753902463201,0.38,3695.7,3694.6,36.556]
[1753902463202,1.35264,3697.1,3695.3,3.2078]
[1753902463403,3.2078,3697.2,3696.3,3.2078]
[1753902463604,0.54111,3696.6,3696.3,3.2078]
[1753902463806,1.35272,3696.8,3696.1,3.2078]
[1753902463999,1.35272,3696.8,3695.7,38.993]
[1753902464200,1.35272,3696.8,3695.8,3.2078]
[1753902464201,3.2078,3696.8,3695.8,3.2078]
[1753902464400,0.54109,3696.8,3696.7,3.2078]
[1753902464601,1.35234,3697.9,3696.7,3.2078]
[1753902464899,0.54111,3696.6,3696.5,36.556]
[1753902465097,0.54123,3695.8,3695.7,75.542]
[1753902465303,0.54123,3695.8,3695.7,78.7498]
[1753902465604,3.58666823,3698.6,3695.7,83.7498]
[1753902465810,243.708,3700.7,3695.7,38.993]
[1753902465811,3.2078,3696.8,3695.7,38.993]
[1753902466006,0.54119,3696.1,3695.9,3.2078]
[1753902466306,1.35312,3695.7,3694.7,3.2078]
[1753902466497,0.54148,3694.1,3693.8,39.39208038]
[1753902467006,0.54148,3694.1,3691.3,243.876]
[1753902467007,0.54164,3693.0,3692.8,36.549]
[1753902467207,0.5417,3692.6,3692.5,3.2078]
[1753902467504,3.2078,3693.8,3692.6,0.5417]
[1753902467700,3.2078,3694.5,3693.7,3.2078]
[1753902467902,3.2078,3694.5,3693.8,36.549]
[1753902468101,3.2078,3695.5,3694.5,0.54142]
[1753902468408,0.54139,3694.7,3694.6,36.546]
[1753902468709,0.54139,3694.7,3693.7,36.546]
[1753902468710,1.35354,3694.6,3693.7,36.546]
[1753902468909,3.2078,3694.7,3693.8,3.2078]
[1753902469102,3.2078,3694.7,3693.6,3.2078]
[1753902469307,3.2078,3694.7,3693.9,36.546]
[1753902469506,3.2078,3695.2,3693.9,36.546]
[1753902469703,0.38,3695.7,3694.8,3.2078]
[1753902469899,0.38,3695.7,3694.1,3.2078]
[1753902470098,3.2078,3695.1,3694.5,3.2078]
[1753902470310,0.54129,3695.5,3694.9,3.2078]
[1753902470602,3.2078,3695.3,3694.1,3.2078]
[1753902470803,0.54152,3693.9,3693.2,32.561]
[1753902471008,3.2078,3694.4,3693.2,33.1026]
[1753902471313,3.2078,3694.5,3693.4,3.2078]
[1753902471610,3.2078,3693.5,3692.7,75.53]
[1753902471805,3.2078,3693.5,3692.7,38.983]
[1753902471806,0.54165,3693.0,3692.7,38.983]
[1753902472000,0.54181,3691.9,3691.2,0.5419]
[1753902472207,3.2078,3692.2,3691.1,39.7548]
[1753902472405,3.2078,3692.6,3691.8,3.2078]
[1753902472605,0.54179,3692.0,3690.8,0.40641045]
[1753902472812,3.2078,3692.6,3690.9,39.7548]
[1753902473109,3.2078,3692.6,3690.8,0.40641045]
[1753902473110,3.2078,3691.8,3690.8,0.40641045]
[1753902473306,1.35458,3691.7,3690.8,0.40641045]
[1753902473512,0.54195,3690.9,3690.8,0.40641045]
[1753902473709,3.2078,3691.0,3689.2,3.2078]
[1753902473912,0.54207,3690.1,3689.2,3.2078]
[1753902474112,3.2078,3690.2,3689.2,3.2078]
[1753902474408,3.2078,3690.2,3689.2,39.7628]
[1753902474705,1.35471,3691.4,3689.4,3.2078]
[1753902474706,3.2078,3690.5,3689.4,3.2078]
[1753902475015,3.2078,3690.7,3689.7,3.2078]
[1753902475210,3.2078,3691.2,3689.2,3.2078]
[1753902475414,0.542,3690.6,3689.6,3.74993]
[1753902475614,3.2078,3690.0,3689.7,36.555]
[1753902475814,0.54209,3689.9,3689.2,3.2078]
[1753902476015,3.2078,3690.0,3689.2,39.7628]
[1753902476307,0.54212,3689.8,3689.3,36.555]
[1753902476509,3.2078,3690.0,3689.2,0.54219]
[1753902476713,3.2078,3690.0,3688.6,38.992]
[1753902476909,0.5421,3689.9,3688.7,36.565]
[1753902477208,0.5421,3689.9,3688.6,38.992]
[1753902477209,3.74983,3690.4,3689.6,0.54213]
[1753902477409,3.74988,3690.0,3689.2,36.565]
[1753902477611,3.2078,3689.9,3688.6,38.992]
[1753902477815,3.74991,3689.8,3689.1,0.5422]
[1753902478016,1.01223434,3689.8,3688.9,3.2078]
[1753902478313,0.54218,3689.4,3688.9,3.2078]
[1753902478511,3.2078,3689.9,3688.9,3.2078]
[1753902478714,3.2078,3690.4,3688.9,0.54224]
[1753902479012,3.2078,3690.0,3688.8,3.2078]
[1753902479210,0.54221,3689.2,3688.8,3.2078]
[1753902479414,3.2078,3689.5,3688.8,3.75005]
[1753902479613,3.2078,3690.0,3688.6,38.992]
[1753902480116,1.35508,3690.4,3688.6,42.1998]
[1753902480309,3.2078,3690.2,3688.8,3.2078]
[1753902480612,0.38,3707.7,3690.9,0.54194]
[1753902480613,3.44370786,3691.2,3690.9,0.54194]
[1753902480813,5.0,3691.2,3690.4,3.2078]
[1753902481110,3.2078,3691.6,3690.6,3.74978]
[1753902481309,3.2078,3692.4,3692.1,0.54177]
[1753902481504,0.5417,3692.6,3692.3,3.2078]
[1753902481713,0.38,3692.7,3691.7,3.2078]
[1753902481910,3.2078,3692.0,3691.0,0.54193]
[1753902482213,3.2078,3691.6,3690.2,3.2078]
[1753902482414,3.2078,3691.6,3691.3,0.54188]
[1753902482612,0.38,3692.7,3691.8,1.35455]
[1753902482910,0.38,3692.7,3692.1,3.2078]
[1753902483111,0.54174,3692.4,3691.0,36.575]
[1753902483410,0.38,3692.7,3691.0,36.575]
[1753902483612,0.38,3692.7,3691.9,0.5418]
[1753902483810,0.38,3692.7,3691.4,3.2078]
[1753902483811,0.5418,3692.0,3691.4,3.2078]
[1753902484007,0.38,3692.7,3691.1,36.575]
[1753902484206,0.38,3692.7,3691.4,3.2078]
[1753902484417,2.6835,3692.7,3692.6,3.2078]
[1753902484615,0.38,3692.7,3692.6,3.2078]
[1753902484813,0.38,3692.7,3692.4,3.2078]
[1753902485109,0.38,3692.7,3691.0,36.575]
[1753902485310,0.38,3692.7,3691.9,1.35451]
[1753902485510,2.6835,3692.7,3692.5,0.5417]
[1753902485710,2.6835,3692.7,3691.7,3.2078]
[1753902485908,3.2078,3692.5,3692.1,0.54177]
[1753902486110,3.47147822,3692.6,3691.2,3.2078]
[1753902486418,3.47147822,3692.6,3689.9,1.35523]
[1753902486419,1.90514,3691.0,3689.9,1.35523]
[1753902486608,2.8695,3690.8,3690.0,0.54207]
[1753902486808,0.9403,3690.3,3689.2,1.35549]
[1753902487014,3.8098,3690.3,3688.9,4.7159]
[1753902487314,1.35502,3690.6,3688.9,0.54223]
[1753902487315,0.54215,3689.5,3688.9,0.54223]
[1753902487506,0.54227,3688.7,3688.5,6.26260759]
[1753902487708,0.5423,3688.5,3688.4,7.35024719]